Cogmind - Beta 15 @@@ ROGUE MODE // 2025.07.29 @ 21:49:18 Player: bugsniper Result: Destroyed by P-70 Sage with Tesla Rifle Performance ------------- Evolutions (6) 3000 Regions Visited (16) 3200 Robots Destroyed (245) 1225 Value Destroyed (9724) 9724 Prototype IDs (43) 860 Alien Tech Used (2) 400 Bonus (4143) 4143 TOTAL SCORE: 22552 Bonus ------- High Alert Combat Kills 1881 Follower Combat Kills 961 Registered with UFD 300 Met Optimus in HQ 500 Met Data Miner 300 Met Zhirov 300 Friendly Fire -99 Cogmind --------- Core Integrity 0/1150 Matter 161/300 Energy 100/100 System Corruption 27% Temperature Cool (0) Movement Core (50) Location -4/Upper Caves Parts ------- > --- POWER (2) -------- (None) > --- PROPULSION (4) --- (None) > --- UTILITY (10) ----- Advanced Signal Interpreter Advanced Terrain Scan Processor Makeshift Hacking Suite Advanced Hacking Suite Makeshift System Shield > --- WEAPON (3) ------- Makeshift Axe (fused) > --- INVENTORY (5) ---- Improved Fusion Compressor Phase Gun Autogun Thermoblaster Neutron Missile Launcher Peak State ------------ > --- POWER ------------ Light Neutrino Core Light Antimatter Reactor > --- PROPULSION ------- High-density Centrium Heavy Treads High-density Centrium Heavy Treads > --- UTILITY ---------- Advanced Coolant Injector Large Storage Unit Advanced Sensor Array Advanced Signal Interpreter Advanced Terrain Scan Processor Advanced Targeting Computer Improved Phase Shifter Layered Heavy Armor Plating Makeshift System Shield > --- WEAPON ----------- Coil Gun Hypervelocity Coil Gun Neutron Missile Launcher > --- INVENTORY -------- High-density Centrium Heavy Treads Experimental Matter Compressor Experimental Matter Compressor Seismic Detector Makeshift Hacking Suite Advanced Hacking Suite Transdimensional Reconstructor Tesla Rifle Dispersion Rifle Advanced Plasma Cannon Thermoblaster Point Singularity Launcher Point Singularity Launcher Makeshift Axe [Rating: 132] Favorites ----------- Power Light Neutrino Core Engine Improved Deuterium Engine Power Core Light Neutrino Core Reactor Light Antimatter Reactor Propulsion High-density Centrium Heavy Treads Treads High-density Centrium Heavy Treads Leg Armored Leg Wheel Compact Wheel Hover Unit Cooled Aerolev Unit Flight Unit Biomechanical Wings Utility Large Storage Unit Device Advanced Sensor Array Storage Large Storage Unit Processor Advanced Signal Interpreter Hackware Hacking Suite Protection Layered Heavy Armor Plating Weapon Hypervelocity Coil Gun Energy Gun Shock Rifle Energy Cannon Heavy Ion Cannon Ballistic Gun Hypervelocity Coil Gun Ballistic Cannon Advanced Assault Cannon Launcher Neutron Missile Launcher Special Weapon Junk Cannon Impact Weapon Heavy Hammer Slashing Weapon Makeshift Axe Piercing Weapon Lance Build | -11 -10 -10 -8 -8 -6 -6 -6 -6 -5 -5 -5 -5 -5 -4 -4 -4 ------- Run | Yrd Mat Sub Rec Scr Fac Low Low Dat Pro Fac Upp Upp Zhi Pro Fac Upp Slots Evolved 12 | . . . . . 8 . . . . 2 . . . . 2 . Power 1 | . . . . . 1 . . . . . . . . . . . Propulsion 2 | . . . . . 2 . . . . . . . . . . . Utility 8 | . . . . . 5 . . . . 1 . . . . 2 . Weapon 1 | . . . . . . . . . . 1 . . . . . . Parts Attached 188 | . 17 17 7 11 57 5 3 . 16 9 2 2 2 3 35 2 Power 25 | . 2 3 . . 8 . 1 . . 2 1 1 1 . 5 1 Engine 13 | . 2 2 . . 7 . 1 . . . . 1 . . . . Core 10 | . . 1 . . . . . . . 2 1 . 1 . 4 1 Reactor 2 | . . . . . 1 . . . . . . . . . 1 . Propulsion 47 | . 3 5 4 4 19 . 2 . 5 . . . . . 4 1 Treads 20 | . 3 3 2 3 4 . 2 . 2 . . . . . 1 . Leg 13 | . . 2 . . 8 . . . 1 . . . . . 2 . Wheel 8 | . . . 2 1 5 . . . . . . . . . . . Hover 1 | . . . . . 1 . . . . . . . . . . . Flight 5 | . . . . . 1 . . . 2 . . . . . 1 1 Utility 69 | . 6 4 . 3 22 4 . . 2 6 . 1 1 3 17 . Device 24 | . 1 . . 1 9 3 . . 1 2 . 1 . . 6 . Storage 8 | . 2 1 . 1 1 . . . 1 . . . . 1 1 . Processor 10 | . . . . . 5 1 . . . . . . . 1 3 . Hackware 6 | . . . . . 1 . . . . 1 . . . . 4 . Protection 21 | . 3 3 . 1 6 . . . . 3 . . 1 1 3 . Artifact . | . . . . . . . . . . . . . . . . . Weapon 47 | . 6 5 3 4 8 1 . . 9 1 1 . . . 9 . Energy Gun 6 | . 1 . . . 2 . . . . . 1 . . . 2 . Energy Cannon 14 | . 4 2 1 . 3 1 . . 1 . . . . . 2 . Ballistic Gun 12 | . 1 2 . . 2 . . . 3 . . . . . 4 . Ballistic Cannon 4 | . . . . 3 . . . . . 1 . . . . . . Launcher 6 | . . 1 1 . . . . . 4 . . . . . . . Special Weapon 1 | . . . . 1 . . . . . . . . . . . . Impact Weapon 1 | . . . . . 1 . . . . . . . . . . . Slashing Weapon 2 | . . . 1 . . . . . 1 . . . . . . . Piercing Weapon 1 | . . . . . . . . . . . . . . . 1 . Special Melee Weapon . | . . . . . . . . . . . . . . . . . Unidentified Prototypes 13 | . . . . 1 2 . . . 7 1 . . 2 . . . Parts Lost 42 | . 1 2 1 . 16 . . . 2 . 2 . . . 14 4 Power 9 | . . 1 . . 3 . . . 1 . 1 . . . 3 . Propulsion 7 | . . . . . 4 . . . . . . . . . 1 2 Utility 16 | . 1 1 . . 6 . . . . . . . . . 7 1 Weapon 10 | . . . 1 . 3 . . . 1 . 1 . . . 3 1 Highest Loss Streak 13 | . 1 2 1 . 13 . . . 2 . 1 . . . 4 2 To Critical Strikes 1 | . . . . . . . . . . . . . . . 1 . Average Backups 13 | . 12 10 15 16 11 12 14 14 14 12 12 12 13 13 13 4 Power . | . 1 1 1 . . . . . . . 1 1 . . . 1 Propulsion 1 | . 4 2 3 2 1 1 1 1 . 1 1 2 2 1 1 . Utility 5 | . 2 2 6 8 4 6 7 7 6 4 4 4 5 5 5 . Weapon 5 | . 4 5 4 5 4 5 6 6 6 6 5 5 4 5 6 3 Tool/Special . | . . . . . . . . . . . . . . . . . Unused Backups 47 | . 4 2 . 10 5 1 1 . 4 2 2 2 3 1 5 5 Power 1 | . . 1 . . . . . . . . . . . . . . Propulsion 16 | . 2 . . 4 1 1 . . 2 . 1 1 2 . 2 . Utility 15 | . 1 . . 6 2 . . . 1 2 . 1 1 . . 1 Weapon 15 | . 1 1 . . 2 . 1 . 1 . 1 . . 1 3 4 Tool/Special . | . . . . . . . . . . . . . . . . . Average Slot Usage (%) 84 | . 99 92 83 76 87 92 93 81 87 81 80 81 82 82 81 36 Engine 4 | . 13 10 . . 7 6 6 6 6 . . 4 5 5 . . Core 4 | . . 3 14 14 . . . . . 10 9 5 5 5 5 1 Reactor 1 | . . . . . 1 6 6 6 4 . . . . . 3 . Treads 13 | . 25 21 . 11 6 20 25 26 20 11 11 11 11 11 9 . Leg 3 | . 2 6 22 . 9 6 . . 2 . . . . . . . Wheel 2 | . . . 4 16 6 . . . . . . . . . . . Device 9 | . . . . . 15 22 20 20 15 5 10 10 11 8 12 . Storage 7 | . 14 8 14 14 6 6 6 6 7 10 5 5 5 8 5 . Processor 8 | . . . . . 6 8 13 13 13 11 11 11 11 13 16 10 Hackware 1 | . . . . . . . . . . 4 5 5 5 2 5 15 Protection 5 | . 13 11 . 5 10 . . . 2 4 5 5 5 5 5 . Energy Cannon 4 | . 16 6 5 . 3 6 6 . 3 4 2 4 5 4 4 . Ballistic Gun 6 | . 4 21 10 . 3 6 6 . 7 2 8 4 5 4 6 . Ballistic Cannon 2 | . . . . 9 2 . . . . 5 4 5 5 4 1 . Peak Build Rating 132 | . 12 17 18 26 70 68 66 65 100 116 111 114 108 126 132 41 Average Rating 67 | . 10 13 16 17 50 63 64 55 71 111 105 106 106 112 119 32 On Entrance 59 | 6 6 11 17 11 22 67 64 65 65 94 107 103 107 108 115 41 Naked Turns . | . . . . . . . . . . . . . . . . . Heaviest Build 99 | 11 38 51 53 59 78 85 68 64 75 77 78 85 80 99 91 17 Greatest Support 180 | 20 40 40 40 42 74 70 108 108 180 180 180 180 180 180 180 7 Greatest Overweight (x) 5 | . 1 1 5 3 4 1 1 . 1 . . . . . 2 4 Average Overweight (x) . | . . . 1 1 . . . . . . . . . . . . Largest Inventory Capacity 25 | . 15 25 25 25 15 15 15 15 15 15 15 15 15 15 15 5 Average Capacity 15 | . 13 12 25 20 15 15 15 15 15 15 15 15 15 15 14 5 Most Carried 23 | . 15 16 23 23 15 15 15 15 15 15 15 15 15 15 15 5 Average Carried 14 | . 12 11 16 17 12 13 14 15 14 14 14 14 14 14 14 4 Final Capacity 25 | 8 15 25 25 15 15 15 15 15 15 15 15 15 15 15 5 5 Final Carried 23 | 6 15 16 23 15 15 15 15 15 15 15 15 15 15 15 4 5 Class Distribution -------------------- 25% | Scavenger-Mutant 24% | Skirmisher 14% | Mutant 9% | Commander-Mutant 6% | Tank 6% | Derelict-Mutant 5% | Scavenger-Tank 3% | Scavenger-Skirmisher Dominant Class ---------------- Mutant | -10/Materials Scavenger-Mutant | -10/Subcaves Derelict-Mutant | -8/Recycling Commander-Mutant | -8/Scraptown Scavenger-Mutant | -6/Factory Scavenger-Skirmisher | -6/Lower Caves Scavenger-Mutant | -6/Lower Caves Scavenger-Mutant | -6/Data Miner Scavenger-Mutant | -5/Proximity Caves Mutant | -5/Factory Skirmisher | -5/Upper Caves Skirmisher | -5/Upper Caves Skirmisher | -5/Zhirov Skirmisher | -4/Proximity Caves Scavenger-Tank | -4/Factory Hacker-Mutant | -4/Upper Caves Resources | -11 -10 -10 -8 -8 -6 -6 -6 -6 -5 -5 -5 -5 -5 -4 -4 -4 ----------- Run | Yrd Mat Sub Rec Scr Fac Low Low Dat Pro Fac Upp Upp Zhi Pro Fac Upp Matter Collected 12303 | 200 177 424 217 123 2386 309 110 . 538 914 1630 553 145 855 3482 240 Remotely 595 | . . . . 10 . . . . . . . . . . 585 . Salvage Created 10029 | . 498 362 927 . 2232 297 53 . 475 509 667 197 246 486 3013 67 Parts 415 | . 24 16 27 . 91 11 1 . 26 28 19 10 2 15 143 2 Haulers Intercepted 7 | . 2 . . . . . . . . . . . . . 5 . Recyclers Shooed 34 | . 3 . 10 . 11 . . . . . . . . . 10 . Parts Field Recycled . | . . . . . . . . . . . . . . . . . Retrieved Matter . | . . . . . . . . . . . . . . . . . Parts Self-Destructed 88 | . . 3 . . . 37 5 . 23 . 11 4 . 5 . . Prevented 4 | . . . . . . 1 . . 1 . . 2 . . . . Kills | -11 -10 -10 -8 -8 -6 -6 -6 -6 -5 -5 -5 -5 -5 -4 -4 -4 ------- Run | Yrd Mat Sub Rec Scr Fac Low Low Dat Pro Fac Upp Upp Zhi Pro Fac Upp Combat Hostiles Destroyed 174 | . 8 9 6 . 36 4 2 . 10 3 17 7 . 15 53 4 Melee 3 | . 1 . . . . . . . . . . . . . . 2 Guns 31 | . 1 3 1 . 12 2 . . 1 1 1 . . . 9 . Cannons 59 | . 6 2 4 . 24 2 2 . 3 2 1 . . 1 12 . AOE 79 | . . 3 . . . . . . 6 . 15 7 . 14 32 2 Classes Destroyed 22 | . 4 2 3 . 7 . . . 1 2 . . . 2 1 . Worker 22 | . . . . . 7 . . . . 2 . . . . 13 . Builder 11 | . . . . . . . . . . 3 . . . . 8 . Tunneler 3 | . . . 1 . . . . . . . . . . . 2 . Hauler 7 | . 2 . . . . . . . . . . . . . 5 . Recycler 20 | . 2 . 7 . 4 . . . . 2 . . . . 5 . Carrier 1 | . . . . . . . . . . . . . . 1 . . Operator 1 | . . . . . . . . . . 1 . . . . . . Turret 2 | . . 2 . . . . . . . . . . . . . . Watcher 3 | . . . . . 1 . . . . . . . . . 2 . Swarmer 42 | . 3 4 . . 9 . 2 . . 1 10 . . 1 8 4 Saboteur 2 | . . . . . . . . . . . . . . 1 1 . Grunt 66 | . 5 . 1 . 18 2 . . 2 1 4 5 . 6 22 . Brawler 7 | . . . 2 . . . . . . . . . . 3 2 . Duelist 7 | . . . . . 1 1 . . . 1 . . . 2 2 . Protector 1 | . . . . . . . . . . . . . . . 1 . Sentry 8 | . . . . . 1 1 . . 1 . 2 . . 1 2 . Specialist 2 | . . . . . 1 . . . 1 . . . . . . . Hunter 12 | . . . . . . . . . 2 . 1 2 . 1 6 . Programmer 21 | . . . 3 . 4 . . . 4 . . . . . 10 . Heavy 1 | . . . . . 1 . . . . . . . . . . . Behemoth 1 | . . . . . 1 . . . . . . . . . . . Subdweller 5 | . . 5 . . . . . . . . . . . . . . Packrat 4 | . . . . . . . . . . . 3 . . 1 . . Best Kill Streak 17 | . 3 4 7 . 6 2 2 . 4 3 5 5 . 11 17 4 Combat Bots Only 10 | . 3 4 6 . 6 2 2 . 4 3 5 5 . 10 8 4 Max Kills in Single Turn 6 | . 1 2 1 . 2 1 1 . 3 2 5 3 . 3 6 2 Gunslinging . | . . . . . . . . . . . . . . . . . Exploded 5 | . . 2 . . . . . . 3 . 5 3 . 3 4 2 Melee 1 | . 1 . . . . . . . . . . . . . . 1 Uniques/NPCs Destroyed . | . . . . . . . . . . . . . . . . . Combat | -11 -10 -10 -8 -8 -6 -6 -6 -6 -5 -5 -5 -5 -5 -4 -4 -4 -------- Run | Yrd Mat Sub Rec Scr Fac Low Low Dat Pro Fac Upp Upp Zhi Pro Fac Upp Hostile Shots Fired 1199 | . 51 94 40 . 344 33 2 . 119 11 37 13 . 21 368 66 Missed 390 | . 9 35 10 . 120 14 2 . 37 3 5 2 . 7 120 26 Hits 809 | . 42 59 30 . 224 19 . . 82 8 32 11 . 14 248 40 Melee 4 | . . . . . . . . . . . . . . . 4 . Projectile 805 | . 42 59 30 . 224 19 . . 82 8 32 11 . 14 244 40 AOE 3 | . . 1 . . 2 . . . . . . . . . . . Critical Strikes 37 | . 1 2 1 . 13 . . . 1 2 . 1 . . 15 1 Actively Blocked 1 | . . . . . 1 . . . . . . . . . . . Part Disruptions 7 | . . . 1 . 1 2 . . 2 . . . . . 1 . Damage Taken 14397 | . 520 1060 456 . 3606 229 . . 1383 165 901 219 . 313 4766 779 Core 1835 | . 70 77 90 . 356 17 . . 92 17 40 . . . 409 667 Absorbed by Shields 383 | . . . . . 340 43 . . . . . . . . . . Redirected to Shielding 17 | . . . . . 17 . . . . . . . . . . . Regen/Repaired (Parts) 37 | . . . . . 20 7 . . 10 . . . . . . . Core Remaining (%) 61 | 100 . . . 5 . . . . 45 . . . . 94 . . Volleys Fired 594 | . 35 44 38 . 179 14 4 . 22 12 35 24 19 11 156 1 Largest 3 | . 2 2 2 . 2 2 2 . 2 3 3 2 1 3 3 1 Hottest 260 | . 136 98 136 . 122 123 123 . 260 140 140 104 35 159 238 49 Shots Fired 1069 | . 70 78 47 . 344 29 9 . 39 28 53 26 19 23 303 1 Gun 505 | . 25 47 4 . 155 14 4 . 15 9 30 18 19 2 163 . Cannon 476 | . 45 23 43 . 189 15 5 . 15 19 12 . . 4 106 . Launcher 88 | . . 8 . . . . . . 9 . 11 8 . 17 34 1 Special . | . . . . . . . . . . . . . . . . . Kinetic 563 | . 9 55 4 . 180 14 4 . 15 18 40 18 19 4 183 . Thermal 401 | . 53 23 43 . 140 15 5 . 22 10 2 . . 2 86 . Explosive 73 | . . . . . . . . . 2 . 11 8 . 17 34 1 Electromagnetic 32 | . 8 . . . 24 . . . . . . . . . . . Robot Hit Streak 24 | . 8 8 7 . 17 11 4 . 4 8 17 17 24 7 21 . Robot Miss Streak 6 | . 3 6 5 . 6 2 2 . 2 4 1 2 1 1 4 . Penetration Max 1 | . . . . . 1 1 . . . . 1 . 1 . 1 . Secondary Targets 2 | . . 1 . . . . . . . . . . . . 1 . Max Gunslinging Chain 1 | . . 1 . . . . . . . . . . . . 1 . Shots Hit Robots 723 | . 45 48 31 . 232 23 5 . 21 20 41 23 18 9 201 6 Core Hits 482 | . 17 20 16 . 122 17 2 . 19 11 32 15 18 26 161 6 Critical Kills 26 | . . 1 1 . 6 2 . . 1 . 3 1 2 1 8 . Critical Parts Destroyed 29 | . . . . . 11 . 1 . . . 4 1 . . 12 . Critical Strikes 64 | . . 1 1 . 21 3 1 . 1 . 10 2 2 1 20 1 Burn 1 | . . . . . 1 . . . . . . . . . . . Meltdown 2 | . . 1 1 . . . . . . . . . . . . . Destroy 55 | . . . . . 17 3 1 . 1 . 8 2 2 1 20 . Blast 4 | . . . . . 2 . . . . . 2 . . . . . Corrupt 1 | . . . . . 1 . . . . . . . . . . . Sever 1 | . . . . . . . . . . . . . . . . 1 Melee Attacks 60 | . . . 17 . 8 . . . 1 17 1 . . . 2 14 Impact . | . . . . . . . . . . . . . . . . . Slashing 60 | . . . 17 . 8 . . . 1 17 1 . . . 2 14 Piercing . | . . . . . . . . . . . . . . . . . Sneak Attacks 8 | . . . . . . . . . . 8 . . . . . . Combat Hostiles . | . . . . . . . . . . . . . . . . . Follow-up Attacks . | . . . . . . . . . . . . . . . . . Damage Inflicted 33870 | . 948 1279 795 . 5389 468 77 . 1381 927 2599 1782 155 3133 14434 503 Guns 5578 | . 210 554 67 . 1804 113 13 . 67 50 298 117 155 8 2122 . Cannons 8830 | . 636 304 665 . 3584 355 64 . 303 264 219 . . 28 2408 . Explosions 18419 | . 56 421 . . . . . . 941 . 2082 1665 . 3097 9884 273 Melee 966 | . . . 63 . . . . . 70 613 . . . . . 220 Ramming 77 | . 46 . . . 1 . . . . . . . . . 20 10 Kinetic 7608 | . 50 975 67 . 2890 113 13 . 67 123 489 117 155 36 2513 . Thermal 7807 | . 763 304 665 . 2276 355 64 . 911 191 28 . . . 2250 . Explosive 17022 | . . . . . . . . . 333 . 2082 1665 . 3097 9572 273 Electromagnetic 390 | . 89 . . . 222 . . . . . . . . . 79 . Impact . | . . . . . . . . . . . . . . . . . Slashing 966 | . . . 63 . . . . . 70 613 . . . . . 220 Piercing . | . . . . . . . . . . . . . . . . . Highest Corruption 26 | . . . 4 4 9 9 6 6 14 . . . . . 19 26 Average Corruption 8 | . . . 3 4 7 7 6 6 10 . . . . . 7 21 Corruption Purged 3 | . . . . . . 3 . . . . . . . . . . Corruption Blocked . | . . . . . . . . . . . . . . . . . Effects 312 | . . . 16 . 77 46 26 3 72 . . . . . 55 17 Message Errors 87 | . . . 4 . 22 9 10 2 19 . . . . . 14 7 Matter Fused 72 | . . . 2 . 14 12 7 . 20 . . . . . 13 4 Heat Flow Errors 34 | . . . 3 . 11 7 2 . 7 . . . . . 2 2 Energy Discharges 31 | . . . 2 . 9 8 1 . 6 . . . . . 5 . Parts Rejected 4 | . . . . . 1 . . . 1 . . . . . 2 . Parts Fused 3 | . . . . . . . . . 2 . . . . . . 1 Data Loss (minor) 43 | . . . 3 . 9 8 4 1 9 . . . . . 9 . Data Loss (major) 6 | . . . 1 . 1 . . . 4 . . . . . . . Misfires 12 | . . . 1 . 4 1 1 . 3 . . . . . 2 . Alerts 7 | . . . . . 3 1 1 . 1 . . . . . 1 . Misdirections 6 | . . . . . . . . . . . . . . . 3 3 Weapon Failures 7 | . . . . . 3 . . . . . . . . . 4 . Overload Shots . | . . . . . . . . . . . . . . . . . Overflow Damage 1852 | . 4 9 . . 25 . . . 129 185 228 141 . 343 775 13 Projectiles 90 | . 2 . . . 25 . . . 9 27 . . . . 27 . Explosions 1602 | . . 9 . . . . . . 120 . 228 141 . 343 748 13 Melee 160 | . 2 . . . . . . . . 158 . . . . . . Knockbacks 17 | . . . . . 11 . . . . 1 . . . . 5 . Impact 1 | . . . . . . . . . . . . . . . 1 . Kinetic 15 | . . . . . 10 . . . . 1 . . . . 4 . Secondary 1 | . . . . . 1 . . . . . . . . . . . Self-Inflicted Damage 757 | . . 68 . . . . . . 6 33 258 . . . 321 71 Shots 14 | . . 2 . . . . . . 1 1 4 . . . 5 1 Rammed 16 | . 10 . . . . . . . . . . . . . 3 3 Targets Rammed 18 | . 11 . . . 1 . . . . . . . . . 3 3 Kicked 1 | . . . . . 1 . . . . . . . . . . . Crushed 1 | . 1 . . . . . . . . . . . . . . . Highest Temperature 725 | . 462 4 601 . 251 340 236 . 725 360 358 150 64 302 301 132 Average Temperature 112 | . 162 4 140 . 70 86 92 . 228 153 97 37 28 142 97 68 Received Heat Transfer 2328 | . 288 213 27 . 935 38 . . 27 63 144 27 . 36 530 . Effects 34 | . 4 . 10 . . . . . 10 1 3 . . 2 4 . Shutdowns 7 | . 1 . 3 . . . . . 2 1 . . . . . . Energy Bleed 2 | . . . 2 . . . . . . . . . . . . . Interference 16 | . 3 . . . . . . . 4 . 3 . . 2 4 . Matter Decay 1 | . . . 1 . . . . . . . . . . . . . Short Circuit 3 | . . . 3 . . . . . . . . . . . . . Damage (minor) 2 | . . . 1 . . . . . 1 . . . . . . . Damage (major) 3 | . . . . . . . . . 3 . . . . . . . Siege Activations . | . . . . . . . . . . . . . . . . . Martial Activations . | . . . . . . . . . . . . . . . . . Shielding Activations . | . . . . . . . . . . . . . . . . . Robots Disrupted . | . . . . . . . . . . . . . . . . . Combat Hostiles . | . . . . . . . . . . . . . . . . . Robots Corrupted . | . . . . . . . . . . . . . . . . . Combat Hostiles . | . . . . . . . . . . . . . . . . . Parts Fried 1 | . . . . . 1 . . . . . . . . . . . Impact Corruptions 1 | . 1 . . . . . . . . . . . . . . . Robots Melted 2 | . . 1 1 . . . . . . . . . . . . . Combat Hostiles 2 | . . 1 1 . . . . . . . . . . . . . Parts Melted 18 | . 3 3 . . 5 1 . . 3 . 1 . . . 2 . Heat Transferred 11653 | . 1433 555 1184 . 3374 550 100 . 1267 259 37 . . . 2894 . Parts Sabotaged . | . . . . . . . . . . . . . . . . . Parts Stolen . | . . . . . . . . . . . . . . . . . Parts Stripped . | . . . . . . . . . . . . . . . . . Power Chain Reactions 4 | . 1 . . . . . . . . . . . . . 3 . Alert | -11 -10 -10 -8 -8 -6 -6 -6 -6 -5 -5 -5 -5 -5 -4 -4 -4 ------- Run | Yrd Mat Sub Rec Scr Fac Low Low Dat Pro Fac Upp Upp Zhi Pro Fac Upp Maximum Alert Level 5 | . . . . . 4 . . . . . . . . . 5 . Low Security (%) 70 | . 100 . 100 . 59 . . . . 100 . . . . 45 . Level 1 5 | . . . . . 11 . . . . . . . . . 3 . Level 2 3 | . . . . . 4 . . . . . . . . . 5 . Level 3 7 | . . . . . 7 . . . . . . . . . 16 . Level 4 13 | . . . . . 17 . . . . . . . . . 25 . Level 5 . | . . . . . . . . . . . . . . . 3 . High Security . | . . . . . . . . . . . . . . . . . Max Security . | . . . . . . . . . . . . . . . . . Peak Influence 1704 | . 100 . 104 . 1422 . . . . 71 . . . . 1704 . Initial 74 | . . . 54 . . . . . . 39 . . . . 74 . Average 307 | . 29 . 24 . 365 . . . . 14 . . . . 625 . Influence Increases 6893 | . 275 240 193 . 2153 105 78 . 235 143 375 165 . 350 2416 165 Destroy 0b10 Robot/C 3940 | . 160 120 120 . 1180 80 60 . 200 60 340 140 . 320 1080 80 Destroy 0b10 Robot/NC 385 | . 20 . 40 . 90 . . . 5 40 5 5 . . 180 . Destroy Leader 642 | . 44 . . . 244 10 10 . 30 . 30 20 . 30 214 10 Allied During Kill 248 | . . . . . 226 . 8 . . . . . . . 14 . Successful Hack 70 | . 16 . 20 . 18 . . . . 12 . . . . 4 . Disable Machine 285 | . 15 . . . 90 . . . . 15 . . . . 165 . Anti-Garrison Action 350 | . . . . . 200 . . . . . . . . . 150 . Destroy Structure 583 | . 5 . 13 . 45 . . . . 16 . . . . 504 . Lose Combat Pursuer 390 | . 15 120 . . 60 15 . . . . . . . . 105 75 Influence Decreases 6023 | . 223 178 307 . 738 1082 516 . 171 177 405 165 . 232 1081 748 Entered New Map 1313 | . . 26 60 . . 524 84 . . 25 12 . . . 44 538 Time Decay 3888 | . 213 136 237 . 518 538 392 . 161 152 393 165 . 232 581 170 Lost Part 386 | . 10 16 10 . 160 . . . 10 . . . . . 140 40 Lost Ally 136 | . . . . . 60 20 40 . . . . . . . 16 . Purge Threat 300 | . . . . . . . . . . . . . . . 300 . Squads Dispatched 38 | . . . . . 16 . . . . 2 . . . 1 19 . Investigation 1 | . . . . . 1 . . . . . . . . . . . Extermination 11 | . . . . . 6 . . . . 1 . . . . 4 . Reinforcement 14 | . . . . . 6 . . . . 1 . . . . 7 . Assault 8 | . . . . . 3 . . . . . . . . 1 4 . Garrison 4 | . . . . . . . . . . . . . . . 4 . Intercept . | . . . . . . . . . . . . . . . . . Searches Triggered . | . . . . . . . . . . . . . . . . . Data Miner Redirects 1 | . . . . . . . . . . . . . . . 1 . Construction Impeded 5 | . . . . . 2 . . . . . . . . . 3 . Haulers Reinforced 3 | . . . . . 1 . . . . . . . . . 2 . Active Scanning Responses . | . . . . . . . . . . . . . . . . . Cargo Convoy Interrupts . | . . . . . . . . . . . . . . . . . Stealth | -11 -10 -10 -8 -8 -6 -6 -6 -6 -5 -5 -5 -5 -5 -4 -4 -4 --------- Run | Yrd Mat Sub Rec Scr Fac Low Low Dat Pro Fac Upp Upp Zhi Pro Fac Upp Distress Signals 20 | . 3 . . . 2 . . . . . . . . . 15 . Communications Jammed . | . . . . . . . . . . . . . . . . . Distress Signals . | . . . . . . . . . . . . . . . . . Times Spotted 257 | . 19 13 5 . 67 13 3 . 12 6 15 7 . 5 82 10 Peak Tracking Total 15 | . 6 6 5 . 6 7 3 . 6 3 5 5 . 9 15 4 Tactical Retreats 17 | . 1 3 . . 4 1 . . . . . . . . 6 2 Traps | -11 -10 -10 -8 -8 -6 -6 -6 -6 -5 -5 -5 -5 -5 -4 -4 -4 ------- Run | Yrd Mat Sub Rec Scr Fac Low Low Dat Pro Fac Upp Upp Zhi Pro Fac Upp Traps Triggered 7 | . 1 2 . . 1 1 . . . 2 . . . . . . Indirectly . | . . . . . . . . . . . . . . . . . Trap Hack Attempts . | . . . . . . . . . . . . . . . . . Triggered . | . . . . . . . . . . . . . . . . . Disarmed . | . . . . . . . . . . . . . . . . . Reprogrammed . | . . . . . . . . . . . . . . . . . Reused . | . . . . . . . . . . . . . . . . . Traps Extracted . | . . . . . . . . . . . . . . . . . Installed . | . . . . . . . . . . . . . . . . . Triggered . | . . . . . . . . . . . . . . . . . Machines | -11 -10 -10 -8 -8 -6 -6 -6 -6 -5 -5 -5 -5 -5 -4 -4 -4 ---------- Run | Yrd Mat Sub Rec Scr Fac Low Low Dat Pro Fac Upp Upp Zhi Pro Fac Upp Machines Disabled 27 | . 1 2 . . 6 . . . . 1 3 . . 2 12 . Max in Single Turn 3 | . 1 1 . . 1 . . . . 1 2 . . 1 3 . Garrison Access 2 | . . . . . 1 . . . . . . . . . 1 . Machines Repaired . | . . . . . . . . . . . . . . . . . Machines Dismantled . | . . . . . . . . . . . . . . . . . Machines Sabotaged . | . . . . . . . . . . . . . . . . . Overloaded Fab Kills . | . . . . . . . . . . . . . . . . . Hacking | -11 -10 -10 -8 -8 -6 -6 -6 -6 -5 -5 -5 -5 -5 -4 -4 -4 --------- Run | Yrd Mat Sub Rec Scr Fac Low Low Dat Pro Fac Upp Upp Zhi Pro Fac Upp Machines Accessed 41 | . 6 3 7 5 5 . 1 4 . 2 1 1 3 . 3 . Terminals 17 | . 6 . 5 . 3 . 1 . . 1 . . . . 1 . Fabricators 1 | . . . . . . . . . . 1 . . . . . . Repair Stations . | . . . . . . . . . . . . . . . . . Recycling Units 3 | . . . 2 . 1 . . . . . . . . . . . Scanalyzers 1 | . . . . . . . . . . . . . . . 1 . Garrison Access 2 | . . . . . 1 . . . . . . . . . 1 . Total Hacks 126 | . 15 8 17 15 10 . 1 31 . 7 1 1 12 . 8 . Successful 102 | . 8 8 10 15 7 . 1 31 . 3 1 1 12 . 5 . Failed 24 | . 7 . 7 . 3 . . . . 4 . . . . 3 . Catastrophic 1 | . . . . . . . . . . . . . . . 1 . Database Lockouts . | . . . . . . . . . . . . . . . . . Manual 10 | . 2 . 7 . 1 . . . . . . . . . . . Terminals 44 | . 15 . 13 . 7 . 1 . . 4 . . . . 4 . Fabricators 3 | . . . . . . . . . . 3 . . . . . . Repair Stations . | . . . . . . . . . . . . . . . . . Recycling Units 6 | . . . 4 . 2 . . . . . . . . . . . Scanalyzers 2 | . . . . . . . . . . . . . . . 2 . Garrison Access 3 | . . . . . 1 . . . . . . . . . 2 . Terminal Hacks 94 | . 8 8 6 15 5 . 1 31 . 2 1 1 12 . 4 . Record 31 | . . 6 . 8 . . 1 11 . . 1 . 4 . . . Part Schematic 14 | . . . . . . . . 10 . . . . 4 . . . Robot Schematic 7 | . . . . . . . . 7 . . . . . . . . Robot Analysis 7 | . . . 1 6 . . . . . . . . . . . . Prototype ID Bank 10 | . . . 2 . 1 . . 3 . . . . 4 . . . Open Door 2 | . . 1 . . . . . . . . . 1 . . . . Branch Access Points 3 | . . . 1 . 1 . . . . . . . . . 1 . Emergency Access Points 2 | . 2 . . . . . . . . . . . . . . . Unreport Threat 2 | . . . . . . . . . . . . . . . 2 . Locate Traps 6 | . 2 . . . 2 . . . . 1 . . . . 1 . Maintenance Status 2 | . 1 . 1 . . . . . . . . . . . . . Recall Reinforcements 1 | . . . . . . . . . . 1 . . . . . . Zone Layout 5 | . 3 . 1 . 1 . . . . . . . . . . . Proto ID Catalog 1 | . . . . 1 . . . . . . . . . . . . Release Object 1 | . . 1 . . . . . . . . . . . . . . Fabricator Hacks 1 | . . . . . . . . . . 1 . . . . . . Load Schematic 1 | . . . . . . . . . . 1 . . . . . . Repair Station Hacks . | . . . . . . . . . . . . . . . . . Recycling Unit Hacks 3 | . . . 2 . 1 . . . . . . . . . . . Retrieve Components 3 | . . . 2 . 1 . . . . . . . . . . . Scanalyzer 1 | . . . . . . . . . . . . . . . 1 . Insert Component 1 | . . . . . . . . . . . . . . . 1 . Garrison Access Hacks . | . . . . . . . . . . . . . . . . . Unauthorized Hacks 3 | . . . 2 . 1 . . . . . . . . . . . Terminals . | . . . . . . . . . . . . . . . . . Fabricators . | . . . . . . . . . . . . . . . . . Repair Stations . | . . . . . . . . . . . . . . . . . Recycling Units 2 | . . . 2 . . . . . . . . . . . . . Reject 2 | . . . 2 . . . . . . . . . . . . . Scanalyzers . | . . . . . . . . . . . . . . . . . Garrison Access 1 | . . . . . 1 . . . . . . . . . . . Jam 1 | . . . . . 1 . . . . . . . . . . . Data Cores Recovered . | . . . . . . . . . . . . . . . . . Used . | . . . . . . . . . . . . . . . . . Hacking Detections 17 | . 5 . 4 . 3 . . . . 2 . . . . 3 . Full Trace Events . | . . . . . . . . . . . . . . . . . Feedback Events . | . . . . . . . . . . . . . . . . . Feedback Blocked . | . . . . . . . . . . . . . . . . . Robot Schematics Acquired 7 | . . . . . . . . 7 . . . . . . . . Robots Built . | . . . . . . . . . . . . . . . . . Authchips . | . . . . . . . . . . . . . . . . . Time . | . . . . . . . . . . . . . . . . . Total Robot Build Rating . | . . . . . . . . . . . . . . . . . Part Schematics Acquired 14 | . . . . . . . . 10 . . . . 4 . . . Parts Built . | . . . . . . . . . . . . . . . . . Authchips . | . . . . . . . . . . . . . . . . . Time . | . . . . . . . . . . . . . . . . . Total Part Build Rating . | . . . . . . . . . . . . . . . . . Parts Repaired . | . . . . . . . . . . . . . . . . . Time . | . . . . . . . . . . . . . . . . . Parts Recycled . | . . . . . . . . . . . . . . . . . Recycled Matter . | . . . . . . . . . . . . . . . . . Retrieved Matter . | . . . . . . . . . . . . . . . . . Retrieved Components 18 | . . . 17 . 1 . . . . . . . . . . . Parts Scanalyzed . | . . . . . . . . . . . . . . . . . Part Schematics Acquired . | . . . . . . . . . . . . . . . . . Parts Damaged . | . . . . . . . . . . . . . . . . . Bothacking | -11 -10 -10 -8 -8 -6 -6 -6 -6 -5 -5 -5 -5 -5 -4 -4 -4 ------------ Run | Yrd Mat Sub Rec Scr Fac Low Low Dat Pro Fac Upp Upp Zhi Pro Fac Upp Used RIF Installer . | . . . . . . . . . . . . . . . . . Robots Hacked . | . . . . . . . . . . . . . . . . . Non-combat . | . . . . . . . . . . . . . . . . . Combat . | . . . . . . . . . . . . . . . . . Robot Hacks Applied . | . . . . . . . . . . . . . . . . . Relay Couplers Released 6 | . . . . . . . . . . . . . . . 6 . Machine Destruction 2 | . . . . . . . . . . . . . . . 2 . Programmers 4 | . . . . . . . . . . . . . . . 4 . Fabnet Peak Effective % . | . . . . . . . . . . . . . . . . . Robots Rewired 12 | . . . 8 . . 2 . . . . . . . 2 . . Allies Hacked . | . . . . . . . . . . . . . . . . . Hacks Repelled . | . . . . . . . . . . . . . . . . . Allies | -11 -10 -10 -8 -8 -6 -6 -6 -6 -5 -5 -5 -5 -5 -4 -4 -4 -------- Run | Yrd Mat Sub Rec Scr Fac Low Low Dat Pro Fac Upp Upp Zhi Pro Fac Upp Total Allies 17 | . . . 8 . 5 2 . . . . . . . 2 . . Largest Group 7 | . . . 7 7 7 2 2 . . . . . . 2 2 . Highest-Rated Group 238 | . . . 98 98 238 59 59 . . . . . . 78 78 . Highest-Rated Ally 50 | . . . 27 27 50 30 30 . . . . . . 48 48 . Total Orders . | . . . . . . . . . . . . . . . . . Ally Attacks 145 | . . . . . 135 . 5 . . . . . . . 5 . Total Damage 3401 | . . . . . 3116 . 79 . . . . . . . 206 . Kills 32 | . . . . . 29 . 1 . . . . . . . 2 . Allies Corrupted . | . . . . . . . . . . . . . . . . . Allies Melted . | . . . . . . . . . . . . . . . . . Intel | -11 -10 -10 -8 -8 -6 -6 -6 -6 -5 -5 -5 -5 -5 -4 -4 -4 ------- Run | Yrd Mat Sub Rec Scr Fac Low Low Dat Pro Fac Upp Upp Zhi Pro Fac Upp Active Infowar (turns) 16896 | . 10 . . . 1411 1457 1167 143 2225 756 1941 2645 349 2785 2007 . Sensors 13978 | . . . . . 430 887 . . 2189 756 1941 2638 345 2785 2007 . Terrain 9409 | . 10 . . . . 1404 1167 143 36 . 1921 2645 349 1734 . . Seismic 442 | . . . . . . . . . . . . . . . 442 . T.N.C. 379 | . . . . . . . . . . . . . . . 379 . Machine Analysis 976 | . . . . . 976 . . . . . . . . . . . ECM 5 | . . . . . 5 . . . . . . . . . . . Robot Analysis Total 7 | . . . 1 6 . . . . . . . . . . . . Derelict Logs Recovered 16 | . . 2 . 4 . 1 3 . 2 . 2 1 . 1 . . Drone Launches . | . . . . . . . . . . . . . . . . . Drone Recoveries . | . . . . . . . . . . . . . . . . . Exploration | -11 -10 -10 -8 -8 -6 -6 -6 -6 -5 -5 -5 -5 -5 -4 -4 -4 ------------- Run | Yrd Mat Sub Rec Scr Fac Low Low Dat Pro Fac Upp Upp Zhi Pro Fac Upp Turns Passed 27291 | . 1072 2602 1620 2195 3461 1536 1167 143 2225 756 1941 2645 349 2785 2443 351 Spaces Moved 14742 | 1 546 1436 644 1442 1833 685 698 88 1298 375 1130 1082 184 1683 1060 557 Core 123 | . . . . . . . . . . . . . . . . 123 Treads 10787 | . 495 1073 10 431 549 685 698 88 1298 375 1130 1082 184 1683 1006 . Legs 1442 | 1 51 363 510 . 504 . . . . . . . . . 13 . Wheels 1915 | . . . 124 1011 780 . . . . . . . . . . . Hover . | . . . . . . . . . . . . . . . . . Flight 475 | . . . . . . . . . . . . . . . 41 434 Fastest Speed 35 | 120 120 130 115 97 95 160 160 160 160 160 160 160 160 160 45 35 Average Speed 158 | 120 156 162 206 148 148 212 163 160 160 160 160 160 160 160 159 50 Slowest Speed 470 | 120 240 200 470 245 320 240 240 160 240 160 160 160 160 160 260 355 Overloaded Moves . | . . . . . . . . . . . . . . . . . Propulsion Burnouts . | . . . . . . . . . . . . . . . . . Robots Hopped 1 | . . . . . . . . . . . . . . . . 1 Potential Cave-ins 4 | . . 2 . . . . . . . 2 . . . . . . Cave-ins Triggered . | . . . . . . . . . . . . . . . . . Teleports 1 | . . . . . . . . . . . . . . . 1 . Exploration Rate (%) 63 | 2 85 42 94 90 34 83 89 68 82 7 88 93 60 96 24 50 Regions Visited 16 Branch Regions 12 Pre-discovered Areas 10 | . . 2 . 2 . . 1 1 . . . . 3 1 . . Known Exits Taken 11 | . . . . . 1 1 1 1 1 1 1 1 1 1 1 . Unknown Exits Taken 5 | 1 1 1 1 1 . . . . . . . . . . . . Scrap Searched 29 | . . 2 . 6 . 7 2 . 2 . 3 2 . 4 . 1 Spaces Dug 256 | . . 33 16 . 8 . . . . 7 81 31 . 51 27 2 Terrain Destroyed 1018 | . 3 119 16 . 16 5 3 . 30 9 221 135 1 162 289 9 Melee 36 | . . . 16 . 8 . . . . 7 1 . . . 2 2 Projectile 63 | . . 2 . . 8 4 3 . 7 2 3 . . 1 33 . AOE 916 | . 3 117 . . . . . . 23 . 217 134 . 161 254 7 Terrain Rammed . | . . . . . . . . . . . . . . . . . Walls Destroyed . | . . . . . . . . . . . . . . . . . Machines Disabled . | . . . . . . . . . . . . . . . . . Actions | -11 -10 -10 -8 -8 -6 -6 -6 -6 -5 -5 -5 -5 -5 -4 -4 -4 --------- Run | Yrd Mat Sub Rec Scr Fac Low Low Dat Pro Fac Upp Upp Zhi Pro Fac Upp Total 17667 | . 690 1631 871 1506 2215 742 714 93 1405 492 1212 1968 222 1751 1545 610 Wait 1422 | . 46 75 46 13 55 7 2 . 23 61 18 847 . 7 203 19 Move 14724 | . 545 1435 643 1441 1832 684 697 87 1297 374 1129 1081 183 1682 1059 555 Hop 1 | . . . . . . . . . . . . . . . . 1 Pick Up 164 | . 20 25 7 21 25 3 2 . 15 4 8 3 6 4 16 5 Fast Attach 125 | . 5 4 5 6 39 2 3 . 9 6 1 3 4 2 34 2 Attach 58 | . 3 6 2 3 16 3 . . 5 3 3 . 1 1 9 3 Detach 21 | . . 1 2 1 5 3 . . 1 1 . . . 1 4 2 Swap 100 | . 10 12 3 3 14 2 . . 7 5 10 4 . 10 20 . Drop 219 | . 15 22 6 18 41 5 5 6 24 9 7 5 9 4 39 4 Fire 594 | . 35 44 38 . 179 14 4 . 22 12 35 24 19 11 156 1 Melee 60 | . . . 17 . 8 . . . 1 17 1 . . . 2 14 Ram 4 | . . . . . . . . . . . . . . . . 4 Kick 1 | . . . . . 1 . . . . . . . . . . . Crush 14 | . 11 . . . . . . . . . . . . . 3 . Escape Stasis . | . . . . . . . . . . . . . . . . . Rewire 153 | . . 1 102 . . 18 1 . 1 . . 1 . 29 . . Trap . | . . . . . . . . . . . . . . . . . Miscellaneous 7 | . . 6 . . . 1 . . . . . . . . . . Route ------- -11/Scrapyard -10/Materials (discovered 5 exits: [*Mat x3] / [*Min] / *Sub) -10/Subcaves (discovered 2 exits: Mat / *Rec) -8/Recycling (discovered 2 exits: *Fac / *Scr) -8/Scraptown (discovered 2 exits: *Fac x2) -6/Factory (discovered 6 exits: *Fac x2 / *Low x2 / Ext x2) -6/Lower Caves -6/Lower Caves (discovered 2 exits: *Fac / *Dat) -6/Data Miner -5/Proximity Caves -5/Factory (discovered 3 exits: Fac x2 / *Upp) -5/Upper Caves -5/Upper Caves (discovered 2 exits: *Fac / *Zhi) -5/Zhirov -4/Proximity Caves -4/Factory (discovered 4 exits: Res x2 / *Upp x2) -4/Upper Caves History --------- Turn | Location | Event 1 | -11/Scrapyard | Discovered new exit (range 0) 1 | -11/Scrapyard | Entered Materials 171 | -10/Materials | Discovered new exit (range 14) 317 | -10/Materials | Discovered new exit (range 14) 366 | -10/Materials | Build established: Mutant 479 | -10/Materials | Discovered new exit (range 16) 817 | -10/Materials | Discovered new exit (range 10) 1059 | -10/Materials | Discovered new exit (range 10) 1073 | -10/Materials | Entered Subcaves 1117 | -10/Subcaves | Learned location of Recycling (-8) 1166 | -10/Subcaves | Shifting Twisted Machinery released Shrapnel Trap 1180 | -10/Subcaves | Shifting Twisted Machinery released Mak. Leg 1379 | -10/Subcaves | Visited Clippyterm 1383 | -10/Subcaves | Learned Research security intel 1383 | -10/Subcaves | Learned Factory stockpile data 1481 | -10/Subcaves | Build established: Scavenger-Mutant 1491 | -10/Subcaves | Identified exit to Materials 1588 | -10/Subcaves | A swath of the cavern ceiling suddenly collapsed 1694 | -10/Subcaves | Learned location of Zion (-7) 1694 | -10/Subcaves | Met a Zionite searching for "candidates" 1713 | -10/Subcaves | Shifting Twisted Machinery released Mak. Axe 1716 | -10/Subcaves | Shifting Twisted Machinery released Mak. System Restoration Module 2275 | -10/Subcaves | Shifting Twisted Machinery released Scrap Shield 2279 | -10/Subcaves | Shifting Twisted Machinery released Sub. Shrapnel Launcher 2625 | -10/Subcaves | Build established: Subdweller-Mutant 2667 | -10/Subcaves | Ambushed by Subdweller buried in earth 2689 | -10/Subcaves | Ambushed by Subdweller buried in earth 2693 | -10/Subcaves | Core integrity fell below 50% 3182 | -10/Subcaves | Discovered new exit (range 15) 3334 | -10/Subcaves | Build established: Mutant 3675 | -10/Subcaves | Entered Recycling 4107 | -8/Recycling | Build established: Derelict-Mutant 4501 | -8/Recycling | Discovered new exit (range 16) 4649 | -8/Recycling | Core integrity fell below 20% 4930 | -8/Recycling | Build established: Mutant 5245 | -8/Recycling | Scanned before Scraplab entrance 5262 | -8/Recycling | Entered Scraplab 5271 | -8/Recycling | Discovered new exit (range 2) 5295 | -8/Recycling | Entered Scraptown 5295 | -8/Scraptown | Accompanied by 7 allies 5298 | -8/Scraptown | System corruption cleaned by C-Scrubber 5389 | -8/Scraptown | Heard Great Nut preacher, LISTEN AND RECITE! 5460 | -8/Scraptown | Build established: Commander-Mutant 5478 | -8/Scraptown | Discovered new exit (range 13) 5542 | -8/Scraptown | Scanned Subdweller tech in exchange for log data 5544 | -8/Scraptown | Learned Factory security intel 5545 | -8/Scraptown | Learned location of Extension (-6) 5546 | -8/Scraptown | Learned Research garrison access intel 5580 | -8/Scraptown | Visited SPCMW 5600 | -8/Scraptown | Visited Awakened 5641 | -8/Scraptown | Visited TADAMA 5660 | -8/Scraptown | Visited Cyclists 5680 | -8/Scraptown | Visited Symbiants 5898 | -8/Scraptown | Visited Fellowship of the Rings 5913 | -8/Scraptown | Visited IN-MT5's Study 5950 | -8/Scraptown | Visited UFD Registry 5950 | -8/Scraptown | Registered with UFD as "Metaeater" 6025 | -8/Scraptown | Entered Cyclist Reading Room 6394 | -8/Scraptown | Visited Science Guys 6448 | -8/Scraptown | Visited Abandonware Association 6458 | -8/Scraptown | Learned abandonware demo "OVRCLOCK.EXE" 6463 | -8/Scraptown | Learned abandonware demo "SHUTEYE.EXE" 6494 | -8/Scraptown | Received an X-ray algorithm 6502 | -8/Scraptown | Visited Junk Cannon Lab 6509 | -8/Scraptown | Found Prototype Special Weapon 6529 | -8/Scraptown | Identified Junk Cannon 6558 | -8/Scraptown | Delivered Scrap Shield to a Scientist 6837 | -8/Scraptown | Visited Scrapoid Pod Storage 6854 | -8/Scraptown | Found Scrapoid Pod 6895 | -8/Scraptown | Visited Analyses Database 6958 | -8/Scraptown | Visited Supply Room 7019 | -8/Scraptown | Visited DA-N13 Charitable Foundation 7034 | -8/Scraptown | Found DCF Scrap (26 items) 7160 | -8/Scraptown | Visited Observation Area 7218 | -8/Scraptown | Visited Derelict Rescue Squad 7232 | -8/Scraptown | Found DRS Beacon 7357 | -8/Scraptown | Met Optimus 7357 | -8/Scraptown | Accepted into 0bPrime 7449 | -8/Scraptown | Found Scrap Suit 7472 | -8/Scraptown | Discovered new exit (range 3) 7490 | -8/Scraptown | Entered Factory 7490 | -6/Factory | Accompanied by 7 allies 7490 | -6/Factory | Evolved 8 slots: Power x1, Propulsion x2, Utility x5 7760 | -6/Factory | Lost 7 allies 7808 | -6/Factory | Discovered new exit (range 15) 8027 | -6/Factory | Build established: Derelict-Mutant 8468 | -6/Factory | Spotted B-75 Beast 8547 | -6/Factory | Destroyed B-75 Beast 8622 | -6/Factory | Lost 13 parts (2p4n4u3w) 8933 | -6/Factory | Build established: Scavenger-Mutant 9556 | -6/Factory | Discovered new exit (range 16) 9650 | -6/Factory | Scrapoid Pod released 06F05-D (x5) 9675 | -6/Factory | Identified exit to Factory 9940 | -6/Factory | First assault squad dispatched 10102 | -6/Factory | Build established: Mutant 10408 | -6/Factory | Build established: Scavenger-Mutant 10686 | -6/Factory | Identified exit to Lower Caves 10686 | -6/Factory | Identified exit to Extension 10951 | -6/Factory | Entered Lower Caves 10951 | -6/Lower Caves | Accompanied by 1 ally 10953 | -6/Lower Caves | UFD Scientist delivered a prototype 10953 | -6/Lower Caves | Attracted the attention of an 0b10 checkpoint 11008 | -6/Lower Caves | Activated DRS Beacon 11022 | -6/Lower Caves | Found Scrap Suit 11318 | -6/Lower Caves | Build established: Scavenger-Skirmisher 11461 | -6/Lower Caves | Learned 8 Factory zone layouts 11788 | -6/Lower Caves | Attracted the attention of an 0b10 outpost 12207 | -6/Lower Caves | Build established: Scavenger-Mutant 12268 | -6/Lower Caves | Discovered new exit (range 10) 12283 | -6/Lower Caves | Identified exit to Lower Caves 12487 | -6/Lower Caves | Entered another Lower Caves area 12487 | -6/Lower Caves | Accompanied by 2 allies 12545 | -6/Lower Caves | Found DCF Scrap (15 items) 12623 | -6/Lower Caves | Discovered exit to Factory (range 7) 12853 | -6/Lower Caves | Learned location of 1 exit from Factory 12875 | -6/Lower Caves | Learned 4 Factory zone layouts 13636 | -6/Lower Caves | Discovered new exit (range 12) 13652 | -6/Lower Caves | Identified exit to Data Miner 13654 | -6/Lower Caves | Entered Data Miner 13656 | -6/Data Miner | Discovered new exit (range 7) 13688 | -6/Data Miner | Met Data Miner 13715 | -6/Data Miner | Learned location of Section 7 (-3) 13715 | -6/Data Miner | Acquired the access code to Warlord's prototype stash 13741 | -6/Data Miner | Received God Mode back door access code from Data Miner 13795 | -6/Data Miner | Identified exit to Proximity Caves 13797 | -6/Data Miner | Entered Proximity Caves 14414 | -5/Proximity Caves | Learned 8 Factory zone layouts 14546 | -5/Proximity Caves | System corruption reached 10% 14913 | -5/Proximity Caves | Encountered a Derelict sapper outpost 15184 | -5/Proximity Caves | Unaware initiated a cargo recovery operation 15376 | -5/Proximity Caves | Core integrity fell below 50% 15547 | -5/Proximity Caves | Found Prototype Launcher 15547 | -5/Proximity Caves | Identified Point Singularity Launcher 15619 | -5/Proximity Caves | Found Point Singularity Launcher 15839 | -5/Proximity Caves | Build established: Mutant 15989 | -5/Proximity Caves | Discovered exit to Factory (range 16) 15991 | -5/Proximity Caves | Attracted the attention of an 0b10 checkpoint 16022 | -5/Proximity Caves | Entered Factory 16022 | -5/Factory | Evolved 2 slots: Utility x1, Weapon x1 16023 | -5/Factory | Identified exit to Factory 16024 | -5/Factory | Identified exit to Upper Caves 16778 | -5/Factory | Entered Upper Caves 17086 | -5/Upper Caves | Build established: Skirmisher 17206 | -5/Upper Caves | Learned 8 Factory zone layouts 17305 | -5/Upper Caves | Attracted the attention of an 0b10 base 17873 | -5/Upper Caves | Attracted the attention of an 0b10 checkpoint 18038 | -5/Upper Caves | Entered a destroyed Warlord outpost 18325 | -5/Upper Caves | Discovered new exit (range 12) 18367 | -5/Upper Caves | Learned Factory terminal intel 18715 | -5/Upper Caves | Identified exit to Upper Caves 18719 | -5/Upper Caves | Entered another Upper Caves area 18744 | -5/Upper Caves | Encountered a Warlord checkpoint 18806 | -5/Upper Caves | Discovered exit to Factory (range 12) 18937 | -5/Upper Caves | Attracted the attention of an 0b10 checkpoint 19058 | -5/Upper Caves | Lost 3 allies 19324 | -5/Upper Caves | Learned location of 1 exit from Factory 21028 | -5/Upper Caves | Discovered new exit (range 7) 21345 | -5/Upper Caves | Identified exit to Zhirov 21364 | -5/Upper Caves | Entered Zhirov 21364 | -5/Zhirov | Discovered new exit (range 3) 21393 | -5/Zhirov | Met Zhirov 21443 | -5/Zhirov | Learned location of Quarantine (-3) 21443 | -5/Zhirov | Learned location of Testing (-2) 21443 | -5/Zhirov | Learned location of Command (-1) 21462 | -5/Zhirov | Zhirov requested help retrieving the SGEMP Prototype 21495 | -5/Zhirov | Found Alien Artifact 21495 | -5/Zhirov | Identified Integrated Reactor 21495 | -5/Zhirov | Installed Integrated Reactor, increased core energy generation (+10) 21654 | -5/Zhirov | Found Alien Artifact 21711 | -5/Zhirov | Identified exit to Proximity Caves 21713 | -5/Zhirov | Entered Proximity Caves 22882 | -4/Proximity Caves | Attracted the attention of an 0b10 outpost 22912 | -4/Proximity Caves | Destroyed 10 combat bots 23561 | -4/Proximity Caves | Discovered exit to Factory (range 4) 23753 | -4/Proximity Caves | Build established: Tank 24498 | -4/Proximity Caves | Entered Factory 24498 | -4/Factory | Accompanied by 2 allies 24498 | -4/Factory | Evolved 2 slots: Utility x2 24499 | -4/Factory | Identified exit to Research 24501 | -4/Factory | Loaded intel: 26 terminal locations 24955 | -4/Factory | Identified Transdimensional Reconstructor 25123 | -4/Factory | Garrison activated, responded to threat 25668 | -4/Factory | Incoming assault squad redirected 25777 | -4/Factory | Build established: Scavenger-Tank 26510 | -4/Factory | System corruption reached 10% 26558 | -4/Factory | Destroyed 8 combat bots 26568 | -4/Factory | Lost 4 parts (2p2u) 26683 | -4/Factory | Identified exit to Upper Caves 26748 | -4/Factory | First assault squad dispatched 26780 | -4/Factory | Warped through subspace 26806 | -4/Factory | Lost 3 parts (1u2w) 26868 | -4/Factory | Garrison activated, responded to threat 26927 | -4/Factory | Spotted B-86 Titan 26941 | -4/Factory | Entered Upper Caves 26991 | -4/Upper Caves | Core integrity fell below 50% 27185 | -4/Upper Caves | Build established: Hacker-Mutant 27240 | -4/Upper Caves | Core integrity fell below 20% 27292 | -4/Upper Caves | Destroyed by P-70 Sage with Tesla Rifle Last Messages --------------- 27048_ Dropped Bore Cannon. 27049_ Acquired Unknown Energy Gun. 27066_ /XMP1,3Z5PY3N&,MBWHRPIMSJ3X>EB 27081_ System corrupted: Mak. Axe fused. 27082_ Acquired 47 matter. 27083_ Acquired Neutrino Core. 27092_ Acquired 30 matter. 27106_ /Z3JJYD,W28GRHUQXW0ZJNJ= 27132_ System corrupted: Matter fused (-10). 27163_ Dropped Autogun. 27163_ Acquired Autogun. 27164_ Dropped Neutrino Core. 27167_ HSPJALZH5TU#DBPVR JWS1JOLTX|8IXAEK6VI 27174_ Acquired 32 matter. 27185_ C&MC8PGK=AB|THFG/WJJJ WYF>RM4NHQ 27203_ E6EEVPVP2JL=648MWU G6BVQJKONOXM< 27248_ System corrupted: Matter fused (-10). 27251_ VTOL Module destroyed. 27271_ System corrupted: Matter fused (-7). 27278_ P-70 Sage Imp. Heat Sink severed. Map ----- +----------------------------------------------------+ | ??????????????????# #????????????### | | ?????????????????## ##?????????????? | | ?????????????????# ######????????? | | ?????????????????# #####????? | | ????????????????# #????? | | ????????????????# ####### #????? | | ????????????????## ## ?????# ##### ####????? | | ?????????????????###?# ?????# #??????##???????# | | ?????????????????????## ?????# #?????????????## | | ??????????????????????# ?????# #??#####??#### | | ??????????????????????# ?????# #?## #### | | ??????????????????????# ?????# #?# # | | ????????????????????### ####### #??# #? | | ?????????????????#### #### #?? | | ?????????????????# ### ##? | | ?????????????????# ## ## #? | | ?????????????????# ##### #? | | ?????????????????# #???## #? | | ?????????????????# #????# ## | | ?????????????????## ## ## #????## # | | ?????????????????????## #?# ##?????## | | ??????????????????????## ##?## #####???????# | | ?????????????????????#####??## #???????????## # | | ????????????????????## ##### ####?????????### | | ???????????????????## ## #???????????? | | ???????????????????# @ #??????????? | | ???????????????????# ## p #??????????? | | ???????????????????##### ## ####??????????? | | ???????????????????????#########?###?????????????? | | ?????????????????????????????????????????????????? | | ?????????????????????????????????????????????????? | | ?????????????????????????????????????????????????? | | ?????????????????????????????????????????????????? | | ?????????????????????????????????????????????????? | | ?????????????????????????????????????????????????? | | ?????????????????????????????????????????????????? | | ?????????????????????????????????????????????????? | | ?????????????????????????????????????????????????? | | ?????????????????????????????????????????????????? | | ?????????????????????????????????????????????????? | | ?????????????????????????????????????????????????? | | ?????????????????????????????????????????????????? | | ?????????????????????????????????????????????????? | | ?????????????????????????????????????????????????? | | | | | | | | | | | | | +----------------------------------------------------+ Best States ------------- Heat Dissipation 64 Coolant Potential 100 Energy Generation 45 Energy Capacity 475 Matter Stores 650 Matter Capacity 800 Sight Range 16 Robot Scan Range 16 Terrain Scan Range 16 Terrain Scan Density 210 ECM Strength 2 Armor Coverage 800 Core Shielding 20 Phase Shifting 10 Evasion (%) 63 Targeting Accuracy 8 Target Analysis 8 Armor Integrity Analysis 30 Recoil Reduction 4 Offensive Hacking 25 Defensive Hacking 11 Item Schematics ----------------- Combat Drone Bay | -6/Data Miner | Free Lgt. Regenerative Plating | -6/Data Miner | Free Adv. EM Disruption Field | -6/Data Miner | Free Enh. Flexi-carbon Leg | -6/Data Miner | Free Enh. Coil Gun | -6/Data Miner | Free Imp. Heavy Treads | -6/Data Miner | Free Hvy. Gauss Cannon | -6/Data Miner | Free Graphene Brace | -6/Data Miner | Free Adv. Component Analysis Suite | -6/Data Miner | Free Hvy. Phase Cannon | -6/Data Miner | Free Exp. Heat Sink | -5/Zhirov | Free Assault Drone Bay | -5/Zhirov | Free Exp. Optical Array | -5/Zhirov | Free Imp. Arc Thrower | -5/Zhirov | Free Robot Schematics ------------------ Y-54 Guardian | -6/Data Miner | Free R-10 Processor | -6/Data Miner | Free S-27 Virus | -6/Data Miner | Free A-15 Conveyor | -6/Data Miner | Free A-27 Freighter | -6/Data Miner | Free M-30 Cleanser | -6/Data Miner | Free H-66 Slayer | -6/Data Miner | Free Fabricated ------------ Nothing Repaired ---------- Nothing Alien Tech Used ----------------- Integrated Reactor Transdimensional Reconstructor Achievements -------------- Preemptive Strike Challenges ------------ None Game ------ Seed MicrodissipatorSeismicFilter Manual? 0 Play Time 03:44:53 Cumulative 432.0 hours Start 2025.07.29 @ 17:59:12 End 2025.07.29 @ 21:49:18 Sessions 1 Manual Loads 0 Difficulty Rogue Special Mode None Game No. 246 Rogue 246 Adventurer 0 Explorer 0 Win Type - Total 11 Types 10/0/1/0/0/0/0/0/0/0 Lore% 70 Gallery% 66 Achievement% 53 Wizard Run 0 Options --------- Layout 1 ASCII 0 Keyboard 0 Movement Numpad Keybinds 0 Fullscreen 1 Font 24/Smallcaps Map View 50x35 Zoom Use 0% Tactical HUD 1 Map Filters NONE Filters NONE Steam 1 RUN: 452a09d0-8d23-4b67-8b2c-a57b61c197b5